[Event "Titled Tuesday Blitz August 17 2021"]
[White "Moroni, Luca Jr"]
[Black "Shimelkov, Vasiliy"]
[WhiteFideId "865834"]
[BlackFideId "13701630"]
[WhiteElo "2491"]
[BlackElo "2073"]
[Result "1-0"]
[Round "11"]
[TimeControl "180+1"]
[Date "2021.08.17"]
[WhiteClock "0:00:20"]
[BlackClock "0:00:21"]

1. d4 {[%clk 0:03:00]}  d5 {[%clk 0:02:59]} 2. c4 {[%clk 0:03:00]}  e6 {[%clk 0:02:59]} 3. Nc3 {[%clk 0:03:00]}  Nf6 {[%clk 0:02:58]} 4. cxd5 {[%clk 0:02:59]}  exd5 {[%clk 0:02:58]} 5. Bg5 {[%clk 0:02:59]}  Be7 {[%clk 0:02:58]} 6. e3 {[%clk 0:03:00]}  O-O {[%clk 0:02:57]} 7. Bd3 {[%clk 0:03:00]}  h6 {[%clk 0:02:55]} 8. Bf4 {[%clk 0:03:00]}  b6 {[%clk 0:02:53]} 9. h3 {[%clk 0:03:00]}  c5 {[%clk 0:02:51]} 10. Nf3 {[%clk 0:03:00]}  Bb7 {[%clk 0:02:49]} 11. O-O {[%clk 0:02:59]}  Na6 {[%clk 0:02:48]} 12. Rc1 {[%clk 0:02:59]}  Nb4 {[%clk 0:02:45]} 13. Bb1 {[%clk 0:02:58]}  Ne4 {[%clk 0:02:41]} 14. dxc5 {[%clk 0:02:53]}  Bxc5 {[%clk 0:02:36]} 15. a3 {[%clk 0:02:51]}  Nc6 {[%clk 0:02:32]} 16. Nxd5 {[%clk 0:02:46]}  Ne7 {[%clk 0:02:29]} 17. Nxe7+ {[%clk 0:02:26]}  Qxe7 {[%clk 0:02:27]} 18. b4 {[%clk 0:02:20]}  Rfd8 {[%clk 0:02:23]} 19. Qc2 {[%clk 0:02:19]}  Bd6 {[%clk 0:02:21]} 20. Bxd6 {[%clk 0:02:19]}  Rxd6 {[%clk 0:02:18]} 21. Rfd1 {[%clk 0:02:19]}  Rad8 {[%clk 0:02:09]} 22. Rxd6 {[%clk 0:02:14]}  Qxd6 {[%clk 0:02:07]} 23. Nd4 {[%clk 0:02:14]}  Rd7 {[%clk 0:01:49]} 24. Qc4 {[%clk 0:01:36]}  Nd2 {[%clk 0:01:45]} 25. Qd3 {[%clk 0:01:27]}  Nxb1 {[%clk 0:01:44]} 26. Qxb1 {[%clk 0:01:28]}  a6 {[%clk 0:01:39]} 27. Qf5 {[%clk 0:01:22]}  b5 {[%clk 0:01:34]} 28. Rc5 {[%clk 0:01:15]}  g6 {[%clk 0:01:31]} 29. Qe5 {[%clk 0:01:11]}  Qxe5 {[%clk 0:01:31]} 30. Rxe5 {[%clk 0:01:11]}  Kg7 {[%clk 0:01:31]} 31. Rc5 {[%clk 0:01:07]}  Kf6 {[%clk 0:01:28]} 32. f3 {[%clk 0:01:06]}  Bd5 {[%clk 0:01:26]} 33. Kf2 {[%clk 0:01:05]}  g5 {[%clk 0:01:22]} 34. g4 {[%clk 0:01:02]}  Rd6 {[%clk 0:01:19]} 35. Rc7 {[%clk 0:01:01]}  Bc4 {[%clk 0:01:17]} 36. Kg3 {[%clk 0:01:01]}  Kg6 {[%clk 0:01:13]} 37. h4 {[%clk 0:01:00]}  gxh4+ {[%clk 0:01:12]} 38. Kxh4 {[%clk 0:01:00]}  Be6 {[%clk 0:01:10]} 39. f4 {[%clk 0:00:58]}  Kf6 {[%clk 0:01:08]} 40. Rc6 {[%clk 0:00:54]}  Rxc6 {[%clk 0:01:05]} 41. Nxc6 {[%clk 0:00:55]}  Bd5 {[%clk 0:01:06]} 42. Nd4 {[%clk 0:00:54]}  Kg6 {[%clk 0:01:04]} 43. g5 {[%clk 0:00:47]}  hxg5+ {[%clk 0:01:02]} 44. fxg5 {[%clk 0:00:47]}  f6 {[%clk 0:01:02]} 45. gxf6 {[%clk 0:00:45]}  Kxf6 {[%clk 0:01:02]} 46. Kg3 {[%clk 0:00:45]}  Ke5 {[%clk 0:01:01]} 47. Kf2 {[%clk 0:00:44]}  Ke4 {[%clk 0:00:59]} 48. Ke2 {[%clk 0:00:44]}  Bc4+ {[%clk 0:00:58]} 49. Kd2 {[%clk 0:00:44]}  Bd5 {[%clk 0:00:57]} 50. Ne2 {[%clk 0:00:44]}  Bc4 {[%clk 0:00:55]} 51. Nf4 {[%clk 0:00:41]}  Kf3 {[%clk 0:00:51]} 52. Nd3 {[%clk 0:00:39]}  Ke4 {[%clk 0:00:48]} 53. Nc5+ {[%clk 0:00:39]}  Kd5 {[%clk 0:00:46]} 54. Nxa6 {[%clk 0:00:39]}  Bf1 {[%clk 0:00:45]} 55. Nc5 {[%clk 0:00:40]}  Kc4 {[%clk 0:00:42]} 56. Ne6 {[%clk 0:00:29]}  Bh3 {[%clk 0:00:40]} 57. Nd4 {[%clk 0:00:28]}  Bd7 {[%clk 0:00:38]} 58. Ne2 {[%clk 0:00:28]}  Bf5 {[%clk 0:00:36]} 59. Nf4 {[%clk 0:00:28]}  Be4 {[%clk 0:00:34]} 60. Ne6 {[%clk 0:00:28]}  Bf3 {[%clk 0:00:33]} 61. Nc5 {[%clk 0:00:27]}  Bd5 {[%clk 0:00:30]} 62. e4 {[%clk 0:00:27]}  Bf7 {[%clk 0:00:29]} 63. Ke3 {[%clk 0:00:27]}  Bh5 {[%clk 0:00:27]} 64. e5 {[%clk 0:00:26]}  Kc3 {[%clk 0:00:23]} 65. e6 {[%clk 0:00:24]}  Kb2 {[%clk 0:00:24]} 66. Kd4 {[%clk 0:00:24]}  Kxa3 {[%clk 0:00:24]} 67. Kc3 {[%clk 0:00:25]}  Be8 {[%clk 0:00:22]} 68. e7 {[%clk 0:00:22]}  Bc6 {[%clk 0:00:21]} 69. Ne6 {[%clk 0:00:20]} 1-0


[Site "https://www.chess.com"]

[Event "Titled Tuesday Blitz August 17 2021"]
[White "Novikova, Galina"]
[Black "Nurmanova, Alua"]
[WhiteFideId "4157095"]
[BlackFideId "13729390"]
[WhiteElo "1907"]
[BlackElo "1869"]
[Result "1/2-1/2"]
[Round "11"]
[TimeControl "180+1"]
[Date "2021.08.18"]
[WhiteClock "0:00:05"]
[BlackClock "0:00:04"]

1. e4 {[%clk 0:03:00]}  c5 {[%clk 0:03:00]} 2. Nf3 {[%clk 0:03:00]}  d6 {[%clk 0:03:00]} 3. d4 {[%clk 0:03:00]}  cxd4 {[%clk 0:03:01]} 4. Nxd4 {[%clk 0:03:01]}  Nf6 {[%clk 0:03:00]} 5. Nc3 {[%clk 0:03:01]}  a6 {[%clk 0:03:00]} 6. h3 {[%clk 0:03:02]}  e5 {[%clk 0:02:57]} 7. Nde2 {[%clk 0:03:02]}  Be6 {[%clk 0:02:51]} 8. g4 {[%clk 0:03:02]}  h6 {[%clk 0:02:41]} 9. Bg2 {[%clk 0:03:03]}  Nbd7 {[%clk 0:02:40]} 10. Ng3 {[%clk 0:03:03]}  b5 {[%clk 0:02:39]} 11. Nf5 {[%clk 0:03:02]}  Qc7 {[%clk 0:02:37]} 12. O-O {[%clk 0:02:47]}  b4 {[%clk 0:02:36]} 13. Ne2 {[%clk 0:02:44]}  g6 {[%clk 0:02:32]} 14. Nfg3 {[%clk 0:02:36]}  Bg7 {[%clk 0:02:27]} 15. f4 {[%clk 0:02:34]}  exf4 {[%clk 0:02:23]} 16. Nxf4 {[%clk 0:02:31]}  Ne5 {[%clk 0:02:20]} 17. Nd5 {[%clk 0:01:52]}  Bxd5 {[%clk 0:02:17]} 18. exd5 {[%clk 0:01:53]}  Rc8 {[%clk 0:02:11]} 19. Rf2 {[%clk 0:01:47]}  Qc5 {[%clk 0:02:04]} 20. Qe2 {[%clk 0:01:23]}  O-O {[%clk 0:01:55]} 21. Be3 {[%clk 0:01:22]}  Qc4 {[%clk 0:01:21]} 22. Qd2 {[%clk 0:01:21]}  Kh7 {[%clk 0:01:17]} 23. Raf1 {[%clk 0:01:16]}  Nfd7 {[%clk 0:01:12]} 24. Ne4 {[%clk 0:00:59]}  Qc7 {[%clk 0:01:03]} 25. Bd4 {[%clk 0:00:56]}  a5 {[%clk 0:00:51]} 26. g5 {[%clk 0:00:55]}  Nc4 {[%clk 0:00:45]} 27. Qd3 {[%clk 0:00:45]}  Nde5 {[%clk 0:00:44]} 28. Qg3 {[%clk 0:00:39]}  Nf3+ {[%clk 0:00:40]} 29. Rxf3 {[%clk 0:00:39]}  Bxd4+ {[%clk 0:00:40]} 30. Kh1 {[%clk 0:00:40]}  h5 {[%clk 0:00:32]} 31. b3 {[%clk 0:00:35]}  Ne5 {[%clk 0:00:31]} 32. Rf6 {[%clk 0:00:27]}  Rcd8 {[%clk 0:00:30]} 33. Rd1 {[%clk 0:00:21]}  Bb2 {[%clk 0:00:22]} 34. Rf2 {[%clk 0:00:19]}  Rc8 {[%clk 0:00:18]} 35. Nf6+ {[%clk 0:00:17]}  Kg7 {[%clk 0:00:18]} 36. Qf4 {[%clk 0:00:16]}  Qc3 {[%clk 0:00:14]} 37. Nxh5+ {[%clk 0:00:16]}  gxh5 {[%clk 0:00:14]} 38. Qf6+ {[%clk 0:00:16]}  Kg8 {[%clk 0:00:14]} 39. g6 {[%clk 0:00:16]}  Nxg6 {[%clk 0:00:14]} 40. Qg5 {[%clk 0:00:13]}  Qe5 {[%clk 0:00:13]} 41. Rf5 {[%clk 0:00:12]}  Qe2 {[%clk 0:00:12]} 42. Rg1 {[%clk 0:00:10]}  Rxc2 {[%clk 0:00:11]} 43. Qxh5 {[%clk 0:00:08]}  Be5 {[%clk 0:00:10]} 44. Rg5 {[%clk 0:00:08]}  Qxh5 {[%clk 0:00:09]} 45. Rxh5 {[%clk 0:00:08]}  Kg7 {[%clk 0:00:10]} 46. Rg5 {[%clk 0:00:08]}  Kh6 {[%clk 0:00:09]} 47. Rg4 {[%clk 0:00:07]}  Nf4 {[%clk 0:00:08]} 48. Be4 {[%clk 0:00:07]}  Nh5 {[%clk 0:00:07]} 49. Bxc2 {[%clk 0:00:06]}  Rc8 {[%clk 0:00:05]} 50. Be4 {[%clk 0:00:05]}  Rc3 {[%clk 0:00:05]} 51. Kg2 {[%clk 0:00:04]}  Re3 {[%clk 0:00:05]} 52. Bf5 {[%clk 0:00:03]}  Re2+ {[%clk 0:00:05]} 53. Kf3 {[%clk 0:00:02]}  Rh2 {[%clk 0:00:05]} 54. Bd7 {[%clk 0:00:03]}  Rxh3+ {[%clk 0:00:05]} 55. Ke2 {[%clk 0:00:03]}  Rh2+ {[%clk 0:00:05]} 56. Kd1 {[%clk 0:00:03]}  Rxa2 {[%clk 0:00:04]} 57. Rg8 {[%clk 0:00:04]}  Ra1+ {[%clk 0:00:04]} 58. Ke2 {[%clk 0:00:03]}  Nf4+ {[%clk 0:00:04]} 59. Kd2 {[%clk 0:00:03]}  Bc3+ {[%clk 0:00:04]} 60. Kc2 {[%clk 0:00:04]}  Ra2+ {[%clk 0:00:04]} 61. Kb1 {[%clk 0:00:03]}  Ra1+ {[%clk 0:00:04]} 62. Kc2 {[%clk 0:00:04]}  Ra2+ {[%clk 0:00:04]} 63. Kd1 {[%clk 0:00:04]}  Ra1+ {[%clk 0:00:04]} 64. Kc2 {[%clk 0:00:05]} 1/2-1/2


[Site "https://www.chess.com"]

[Event "Titled Tuesday Blitz August 17 2021"]
[White "Obolentseva, Alexandra"]
[Black "Agibileg, Uurtsaikh"]
[WhiteFideId "24153648"]
[BlackFideId "4901606"]
[WhiteElo "2113"]
[BlackElo "2150"]
[Result "0-1"]
[Round "11"]
[TimeControl "180+1"]
[Date "2021.08.17"]
[WhiteClock "0:00:01"]
[BlackClock "0:00:59"]

1. d4 {[%clk 0:02:56]}  Nf6 {[%clk 0:02:57]} 2. c4 {[%clk 0:02:56]}  g6 {[%clk 0:02:58]} 3. Nc3 {[%clk 0:02:55]}  Bg7 {[%clk 0:02:58]} 4. e4 {[%clk 0:02:55]}  d6 {[%clk 0:02:58]} 5. Nf3 {[%clk 0:02:55]}  O-O {[%clk 0:02:59]} 6. Be2 {[%clk 0:02:55]}  e5 {[%clk 0:02:57]} 7. O-O {[%clk 0:02:54]}  Nc6 {[%clk 0:02:57]} 8. d5 {[%clk 0:02:54]}  Ne7 {[%clk 0:02:58]} 9. b4 {[%clk 0:02:48]}  Nd7 {[%clk 0:02:57]} 10. a4 {[%clk 0:02:39]}  f5 {[%clk 0:02:42]} 11. Ba3 {[%clk 0:02:38]}  Nf6 {[%clk 0:02:38]} 12. Nd2 {[%clk 0:02:36]}  f4 {[%clk 0:02:38]} 13. c5 {[%clk 0:02:35]}  g5 {[%clk 0:02:38]} 14. Nc4 {[%clk 0:02:27]}  g4 {[%clk 0:02:35]} 15. cxd6 {[%clk 0:02:25]}  cxd6 {[%clk 0:02:36]} 16. b5 {[%clk 0:02:22]}  f3 {[%clk 0:02:36]} 17. gxf3 {[%clk 0:02:21]}  gxf3 {[%clk 0:02:37]} 18. Bxf3 {[%clk 0:02:21]}  Ne8 {[%clk 0:02:34]} 19. Kh1 {[%clk 0:02:19]}  Ng6 {[%clk 0:02:28]} 20. Bg4 {[%clk 0:02:14]}  Bxg4 {[%clk 0:02:20]} 21. Qxg4 {[%clk 0:02:15]}  Rc8 {[%clk 0:02:19]} 22. Qe6+ {[%clk 0:01:33]}  Kh8 {[%clk 0:02:08]} 23. Nxd6 {[%clk 0:01:30]}  Nxd6 {[%clk 0:02:04]} 24. Qxd6 {[%clk 0:01:17]}  Rxc3 {[%clk 0:02:03]} 25. Qxd8 {[%clk 0:01:01]}  Rxd8 {[%clk 0:02:01]} 26. Bb4 {[%clk 0:00:54]}  Rc4 {[%clk 0:01:53]} 27. Rab1 {[%clk 0:00:36]}  Rxe4 {[%clk 0:01:53]} 28. d6 {[%clk 0:00:34]}  Bf8 {[%clk 0:01:51]} 29. Rfd1 {[%clk 0:00:33]}  Nf4 {[%clk 0:01:41]} 30. Bc5 {[%clk 0:00:30]}  b6 {[%clk 0:01:40]} 31. Be3 {[%clk 0:00:31]}  Rxd6 {[%clk 0:01:40]} 32. Rxd6 {[%clk 0:00:27]}  Bxd6 {[%clk 0:01:40]} 33. Rd1 {[%clk 0:00:27]}  Bc5 {[%clk 0:01:23]} 34. Rd8+ {[%clk 0:00:19]}  Kg7 {[%clk 0:01:20]} 35. Rd7+ {[%clk 0:00:20]}  Kg6 {[%clk 0:01:18]} 36. Rxa7 {[%clk 0:00:15]}  Bxe3 {[%clk 0:01:17]} 37. fxe3 {[%clk 0:00:15]}  Rxe3 {[%clk 0:01:18]} 38. Kg1 {[%clk 0:00:15]}  Re2 {[%clk 0:01:16]} 39. Ra6 {[%clk 0:00:14]}  Nd5 {[%clk 0:01:15]} 40. a5 {[%clk 0:00:14]}  Rb2 {[%clk 0:01:16]} 41. axb6 {[%clk 0:00:13]}  Rxb5 {[%clk 0:01:17]} 42. b7+ {[%clk 0:00:13]}  Kf5 {[%clk 0:01:17]} 43. Ra5 {[%clk 0:00:11]}  Rb1+ {[%clk 0:01:17]} 44. Kf2 {[%clk 0:00:11]}  Nf4 {[%clk 0:01:18]} 45. Ra7 {[%clk 0:00:10]}  Ne6 {[%clk 0:01:12]} 46. Ke3 {[%clk 0:00:09]}  Nc5 {[%clk 0:01:11]} 47. b8=Q {[%clk 0:00:07]}  Rxb8 {[%clk 0:01:11]} 48. Rxh7 {[%clk 0:00:07]}  Rb3+ {[%clk 0:01:12]} 49. Kd2 {[%clk 0:00:07]}  Ke4 {[%clk 0:01:05]} 50. Rh4+ {[%clk 0:00:07]}  Kd5 {[%clk 0:01:05]} 51. Rh5 {[%clk 0:00:07]}  Kd4 {[%clk 0:01:05]} 52. Rh8 {[%clk 0:00:06]}  Rb2+ {[%clk 0:01:04]} 53. Ke1 {[%clk 0:00:06]}  e4 {[%clk 0:01:03]} 54. h4 {[%clk 0:00:04]}  Nd3+ {[%clk 0:01:00]} 55. Kd1 {[%clk 0:00:03]}  Ke3 {[%clk 0:00:58]} 56. Re8 {[%clk 0:00:01]}  Rd2# {[%clk 0:00:59]} 0-1


[Site "https://www.chess.com"]

[Event "Titled Tuesday Blitz August 17 2021"]
[White "Pichot, Alan"]
[Black "Kvon, Andrey"]
[WhiteFideId "110973"]
[BlackFideId "14201356"]
[WhiteElo "2622"]
[BlackElo "2458"]
[Result "1-0"]
[Round "11"]
[TimeControl "180+1"]
[Date "2021.08.17"]
[WhiteClock "0:00:22"]
[BlackClock "0:00:16"]

1. e4 {[%clk 0:03:00]}  e5 {[%clk 0:02:56]} 2. Nf3 {[%clk 0:03:00]}  Nc6 {[%clk 0:02:56]} 3. Bb5 {[%clk 0:03:01]}  a6 {[%clk 0:02:55]} 4. Ba4 {[%clk 0:03:02]}  Nf6 {[%clk 0:02:55]} 5. O-O {[%clk 0:03:02]}  b5 {[%clk 0:02:55]} 6. Bb3 {[%clk 0:03:02]}  Bc5 {[%clk 0:02:56]} 7. a4 {[%clk 0:03:01]}  Bb7 {[%clk 0:02:55]} 8. d3 {[%clk 0:03:01]}  d6 {[%clk 0:02:55]} 9. Nc3 {[%clk 0:03:01]}  b4 {[%clk 0:02:54]} 10. Ne2 {[%clk 0:03:01]}  h6 {[%clk 0:02:48]} 11. a5 {[%clk 0:03:00]}  Ne7 {[%clk 0:02:48]} 12. Ng3 {[%clk 0:02:59]}  O-O {[%clk 0:02:45]} 13. Be3 {[%clk 0:02:59]}  Bxe3 {[%clk 0:02:34]} 14. fxe3 {[%clk 0:02:59]}  Bc8 {[%clk 0:02:20]} 15. Nh4 {[%clk 0:02:54]}  Be6 {[%clk 0:02:18]} 16. Nhf5 {[%clk 0:02:46]}  Nxf5 {[%clk 0:02:16]} 17. Nxf5 {[%clk 0:02:45]}  Bxb3 {[%clk 0:02:15]} 18. cxb3 {[%clk 0:02:46]}  Kh7 {[%clk 0:02:12]} 19. Qf3 {[%clk 0:02:33]}  Ng8 {[%clk 0:02:07]} 20. d4 {[%clk 0:02:27]}  g6 {[%clk 0:02:02]} 21. Ng3 {[%clk 0:02:27]}  Kg7 {[%clk 0:01:59]} 22. Qe2 {[%clk 0:02:21]}  Qe7 {[%clk 0:01:52]} 23. Qc4 {[%clk 0:02:14]}  c5 {[%clk 0:01:44]} 24. dxc5 {[%clk 0:02:05]}  dxc5 {[%clk 0:01:45]} 25. Rfd1 {[%clk 0:02:06]}  Nf6 {[%clk 0:01:43]} 26. Rac1 {[%clk 0:02:03]}  Rfc8 {[%clk 0:01:42]} 27. Nh1 {[%clk 0:01:48]}  Qc7 {[%clk 0:01:39]} 28. Nf2 {[%clk 0:01:46]}  Qxa5 {[%clk 0:01:39]} 29. Nd3 {[%clk 0:01:46]}  Rc7 {[%clk 0:01:38]} 30. Nxe5 {[%clk 0:01:19]}  Re8 {[%clk 0:01:38]} 31. Ra1 {[%clk 0:01:19]}  Qb5 {[%clk 0:01:30]} 32. Rxa6 {[%clk 0:01:18]}  Qxc4 {[%clk 0:01:30]} 33. Nxc4 {[%clk 0:01:19]}  Rxe4 {[%clk 0:01:19]} 34. h3 {[%clk 0:01:11]}  h5 {[%clk 0:01:19]} 35. Rdd6 {[%clk 0:01:11]}  Nh7 {[%clk 0:01:09]} 36. Kf2 {[%clk 0:01:09]}  h4 {[%clk 0:01:08]} 37. Rac6 {[%clk 0:01:02]}  Ra7 {[%clk 0:00:38]} 38. Rxc5 {[%clk 0:01:00]}  Ree7 {[%clk 0:00:38]} 39. Rdc6 {[%clk 0:00:51]}  Nf6 {[%clk 0:00:37]} 40. Re5 {[%clk 0:00:47]}  Red7 {[%clk 0:00:31]} 41. Rd6 {[%clk 0:00:44]}  Rxd6 {[%clk 0:00:25]} 42. Nxd6 {[%clk 0:00:44]}  Ra1 {[%clk 0:00:25]} 43. Re7 {[%clk 0:00:40]}  Nd5 {[%clk 0:00:22]} 44. Rxf7+ {[%clk 0:00:40]}  Kh6 {[%clk 0:00:22]} 45. Rd7 {[%clk 0:00:39]}  Nf6 {[%clk 0:00:20]} 46. Rb7 {[%clk 0:00:33]}  Rc1 {[%clk 0:00:18]} 47. Rxb4 {[%clk 0:00:30]}  Rc2+ {[%clk 0:00:19]} 48. Kf3 {[%clk 0:00:31]}  g5 {[%clk 0:00:19]} 49. Nf7+ {[%clk 0:00:25]}  Kg6 {[%clk 0:00:19]} 50. Ne5+ {[%clk 0:00:25]}  Kf5 {[%clk 0:00:19]} 51. Nd3 {[%clk 0:00:25]}  Ke6 {[%clk 0:00:17]} 52. Rb6+ {[%clk 0:00:25]}  Kf5 {[%clk 0:00:17]} 53. e4+ {[%clk 0:00:22]}  Nxe4 {[%clk 0:00:16]} 54. Rb5+ {[%clk 0:00:22]} 1-0


[Site "https://www.chess.com"]

[Event "Titled Tuesday Blitz August 17 2021"]
[White "Plotnikov, Pavel"]
[Black "Bazarov, Konstantin"]
[WhiteFideId "4170342"]
[BlackFideId "4137000"]
[WhiteElo "2298"]
[BlackElo "2122"]
[Result "0-1"]
[Round "11"]
[TimeControl "180+1"]
[Date "2021.08.17"]
[WhiteClock "0:00:02"]
[BlackClock "0:00:07"]

1. e4 {[%clk 0:02:59]}  d5 {[%clk 0:02:59]} 2. exd5 {[%clk 0:02:57]}  Qxd5 {[%clk 0:03:00]} 3. Nc3 {[%clk 0:02:55]}  Qd6 {[%clk 0:02:59]} 4. d4 {[%clk 0:02:52]}  Nf6 {[%clk 0:02:58]} 5. Nf3 {[%clk 0:02:50]}  a6 {[%clk 0:02:59]} 6. Ne5 {[%clk 0:02:48]}  Nc6 {[%clk 0:02:57]} 7. Nxc6 {[%clk 0:02:38]}  Qxc6 {[%clk 0:02:57]} 8. d5 {[%clk 0:02:36]}  Qd6 {[%clk 0:02:56]} 9. Bc4 {[%clk 0:02:31]}  g6 {[%clk 0:02:47]} 10. O-O {[%clk 0:02:30]}  Bg7 {[%clk 0:02:47]} 11. Qf3 {[%clk 0:02:26]}  Bg4 {[%clk 0:02:44]} 12. Qf4 {[%clk 0:02:22]}  Qxf4 {[%clk 0:02:37]} 13. Bxf4 {[%clk 0:02:23]}  O-O-O {[%clk 0:02:33]} 14. Rfe1 {[%clk 0:02:14]}  Rhe8 {[%clk 0:02:29]} 15. d6 {[%clk 0:01:49]}  exd6 {[%clk 0:02:18]} 16. Bxf7 {[%clk 0:01:48]}  Rxe1+ {[%clk 0:02:16]} 17. Rxe1 {[%clk 0:01:48]}  Rf8 {[%clk 0:02:16]} 18. Bb3 {[%clk 0:01:47]}  Re8 {[%clk 0:02:05]} 19. Be3 {[%clk 0:01:43]}  Bd7 {[%clk 0:01:57]} 20. f3 {[%clk 0:01:41]}  c6 {[%clk 0:01:48]} 21. Kf2 {[%clk 0:01:39]}  d5 {[%clk 0:01:46]} 22. Na4 {[%clk 0:01:35]}  Ng8 {[%clk 0:01:24]} 23. Rd1 {[%clk 0:01:28]}  Be6 {[%clk 0:01:13]} 24. c3 {[%clk 0:01:27]}  Nf6 {[%clk 0:01:10]} 25. Bd4 {[%clk 0:01:18]}  Nh5 {[%clk 0:01:08]} 26. Bxg7 {[%clk 0:01:10]}  Nxg7 {[%clk 0:01:07]} 27. Nc5 {[%clk 0:01:08]}  Bf7 {[%clk 0:01:06]} 28. Bc2 {[%clk 0:01:03]}  a5 {[%clk 0:01:03]} 29. Nb3 {[%clk 0:01:02]}  b6 {[%clk 0:01:01]} 30. Nd4 {[%clk 0:00:59]}  Kc7 {[%clk 0:01:01]} 31. f4 {[%clk 0:00:52]}  Nh5 {[%clk 0:01:01]} 32. g3 {[%clk 0:00:50]}  Nf6 {[%clk 0:01:00]} 33. Nf3 {[%clk 0:00:49]}  Ng4+ {[%clk 0:00:59]} 34. Kg1 {[%clk 0:00:43]}  Re2 {[%clk 0:00:49]} 35. Nd4 {[%clk 0:00:42]}  Re8 {[%clk 0:00:47]} 36. Rd2 {[%clk 0:00:34]}  c5 {[%clk 0:00:46]} 37. Nb5+ {[%clk 0:00:32]}  Kc6 {[%clk 0:00:43]} 38. Ba4 {[%clk 0:00:32]}  Re1+ {[%clk 0:00:42]} 39. Kg2 {[%clk 0:00:31]}  Ne3+ {[%clk 0:00:38]} 40. Kf3 {[%clk 0:00:28]}  Nc4 {[%clk 0:00:34]} 41. Rf2 {[%clk 0:00:22]}  h5 {[%clk 0:00:28]} 42. b3 {[%clk 0:00:16]}  Re3+ {[%clk 0:00:26]} 43. Kg2 {[%clk 0:00:14]}  Nd6 {[%clk 0:00:27]} 44. Nd4+ {[%clk 0:00:12]}  Kc7 {[%clk 0:00:26]} 45. Ne2 {[%clk 0:00:13]}  Ne4 {[%clk 0:00:23]} 46. c4 {[%clk 0:00:09]}  dxc4 {[%clk 0:00:20]} 47. bxc4 {[%clk 0:00:09]}  Nxf2 {[%clk 0:00:20]} 48. Kxf2 {[%clk 0:00:10]}  Rxe2+ {[%clk 0:00:18]} 49. Kxe2 {[%clk 0:00:10]}  Bxc4+ {[%clk 0:00:18]} 50. Ke3 {[%clk 0:00:11]}  Bxa2 {[%clk 0:00:19]} 51. Be8 {[%clk 0:00:10]}  Bb1 {[%clk 0:00:18]} 52. h3 {[%clk 0:00:08]}  a4 {[%clk 0:00:17]} 53. g4 {[%clk 0:00:08]}  hxg4 {[%clk 0:00:16]} 54. hxg4 {[%clk 0:00:09]}  a3 {[%clk 0:00:16]} 55. Bf7 {[%clk 0:00:09]}  a2 {[%clk 0:00:15]} 56. Bxa2 {[%clk 0:00:08]}  Bxa2 {[%clk 0:00:15]} 57. f5 {[%clk 0:00:09]}  gxf5 {[%clk 0:00:15]} 58. gxf5 {[%clk 0:00:10]}  Kd6 {[%clk 0:00:15]} 59. Kf4 {[%clk 0:00:10]}  Ke7 {[%clk 0:00:15]} 60. Ke5 {[%clk 0:00:10]}  c4 {[%clk 0:00:15]} 61. Kd4 {[%clk 0:00:11]}  b5 {[%clk 0:00:15]} 62. Kc3 {[%clk 0:00:11]}  Kf6 {[%clk 0:00:14]} 63. Kb4 {[%clk 0:00:12]}  Kxf5 {[%clk 0:00:14]} 64. Kc3 {[%clk 0:00:11]}  Ke4 {[%clk 0:00:14]} 65. Kc2 {[%clk 0:00:11]}  Kd4 {[%clk 0:00:13]} 66. Kd2 {[%clk 0:00:12]}  Bb3 {[%clk 0:00:12]} 67. Kc1 {[%clk 0:00:11]}  Kc3 {[%clk 0:00:12]} 68. Kb1 {[%clk 0:00:10]}  Kd2 {[%clk 0:00:11]} 69. Kb2 {[%clk 0:00:09]}  c3+ {[%clk 0:00:12]} 70. Ka3 {[%clk 0:00:10]}  c2 {[%clk 0:00:11]} 71. Kb4 {[%clk 0:00:10]}  c1=Q {[%clk 0:00:10]} 72. Kxb5 {[%clk 0:00:09]}  Qc4+ {[%clk 0:00:10]} 73. Kb6 {[%clk 0:00:08]}  Qb4+ {[%clk 0:00:09]} 74. Kc7 {[%clk 0:00:06]}  Qc5+ {[%clk 0:00:08]} 75. Kd7 {[%clk 0:00:06]}  Qb6 {[%clk 0:00:08]} 76. Ke7 {[%clk 0:00:05]}  Qc6 {[%clk 0:00:08]} 77. Kd8 {[%clk 0:00:05]}  Qb7 {[%clk 0:00:07]} 78. Ke8 {[%clk 0:00:03]}  Kd3 {[%clk 0:00:07]} 79. Kf8 {[%clk 0:00:04]}  Kd4 {[%clk 0:00:07]} 80. Ke8 {[%clk 0:00:02]}  Kd5 {[%clk 0:00:07]} 0-1


[Site "https://www.chess.com"]

[Event "Titled Tuesday Blitz August 17 2021"]
[White "Potapova, Margarita"]
[Black "Roman, Rodrigo"]
[WhiteFideId "14126869"]
[BlackFideId "3701220"]
[WhiteElo "2214"]
[BlackElo "2043"]
[Result "0-1"]
[Round "11"]
[TimeControl "180+1"]
[Date "2021.08.17"]
[WhiteClock "0:00:03"]
[BlackClock "0:01:00"]

1. e4 {[%clk 0:02:59]}  a6 {[%clk 0:03:00]} 2. d4 {[%clk 0:02:58]}  b5 {[%clk 0:03:01]} 3. Bd3 {[%clk 0:02:58]}  Bb7 {[%clk 0:03:00]} 4. Ne2 {[%clk 0:02:58]}  Nf6 {[%clk 0:03:01]} 5. e5 {[%clk 0:02:51]}  Nd5 {[%clk 0:02:59]} 6. a3 {[%clk 0:02:45]}  e6 {[%clk 0:02:56]} 7. O-O {[%clk 0:02:44]}  Be7 {[%clk 0:02:55]} 8. f4 {[%clk 0:02:33]}  g6 {[%clk 0:02:55]} 9. b3 {[%clk 0:02:26]}  c5 {[%clk 0:02:54]} 10. c4 {[%clk 0:02:21]}  bxc4 {[%clk 0:02:54]} 11. bxc4 {[%clk 0:02:22]}  Nb6 {[%clk 0:02:54]} 12. d5 {[%clk 0:02:23]}  exd5 {[%clk 0:02:53]} 13. f5 {[%clk 0:02:08]}  dxc4 {[%clk 0:02:17]} 14. Bc2 {[%clk 0:02:03]}  Nc6 {[%clk 0:02:14]} 15. Bb2 {[%clk 0:01:21]}  Qc7 {[%clk 0:02:10]} 16. e6 {[%clk 0:01:11]}  f6 {[%clk 0:02:10]} 17. fxg6 {[%clk 0:01:02]}  O-O-O {[%clk 0:02:08]} 18. exd7+ {[%clk 0:00:54]}  Rxd7 {[%clk 0:02:07]} 19. Bf5 {[%clk 0:00:54]}  hxg6 {[%clk 0:02:04]} 20. Bxd7+ {[%clk 0:00:54]}  Nxd7 {[%clk 0:02:04]} 21. Ng3 {[%clk 0:00:54]}  Bd6 {[%clk 0:02:02]} 22. Bxf6 {[%clk 0:00:50]}  Nxf6 {[%clk 0:01:55]} 23. Rxf6 {[%clk 0:00:50]}  Qh7 {[%clk 0:01:56]} 24. Qxd6 {[%clk 0:00:39]}  Qxh2+ {[%clk 0:01:55]} 25. Kf2 {[%clk 0:00:39]}  Rd8 {[%clk 0:01:51]} 26. Rf8 {[%clk 0:00:36]}  Rxf8+ {[%clk 0:01:47]} 27. Qxf8+ {[%clk 0:00:37]}  Nd8 {[%clk 0:01:47]} 28. Qxc5+ {[%clk 0:00:35]}  Bc6 {[%clk 0:01:46]} 29. Qe3 {[%clk 0:00:11]}  Qxg2+ {[%clk 0:01:30]} 30. Ke1 {[%clk 0:00:12]}  Qb2 {[%clk 0:01:31]} 31. Qc3 {[%clk 0:00:09]}  Qg2 {[%clk 0:01:31]} 32. Nd2 {[%clk 0:00:08]}  Ne6 {[%clk 0:01:31]} 33. Ndf1 {[%clk 0:00:04]}  Ng5 {[%clk 0:01:24]} 34. Rd1 {[%clk 0:00:05]}  Nf3+ {[%clk 0:01:20]} 35. Qxf3 {[%clk 0:00:05]}  Bxf3 {[%clk 0:01:19]} 36. Rc1 {[%clk 0:00:04]}  Kb8 {[%clk 0:01:12]} 37. Rxc4 {[%clk 0:00:04]}  Qa2 {[%clk 0:01:06]} 38. Rb4+ {[%clk 0:00:04]}  Ka7 {[%clk 0:01:05]} 39. Nd2 {[%clk 0:00:04]}  Qxa3 {[%clk 0:01:01]} 40. Rb3 {[%clk 0:00:04]}  Qc1+ {[%clk 0:00:58]} 41. Kf2 {[%clk 0:00:03]}  Qxd2+ {[%clk 0:00:59]} 42. Kxf3 {[%clk 0:00:03]}  Qd1+ {[%clk 0:01:00]} 0-1


[Site "https://www.chess.com"]